fUSD/lending_fUSD_20240505
["ID","MTS","AMOUNT","RATE_DAILY","PERIOD"]
[325431786,1714881047012,-500.0,0.00032194,2]
[325431787,1714881047022,-500.0,0.00032194,2]
[325431788,1714881047032,-500.0,0.00032194,2]
[325431789,1714881047042,-500.0,0.00032194,2]
[325431790,1714881047052,-500.0,0.00032194,2]
[325431791,1714881047061,-500.0,0.00032194,2]
[325431792,1714881047071,-500.0,0.00032194,2]
[325431793,1714881047080,-500.0,0.00032194,2]
[325431794,1714881047091,-500.0,0.00032194,2]
[325431795,1714881047100,-500.0,0.00032194,2]
[325431796,1714881047111,-500.0,0.00032194,2]
[325431797,1714881047122,-500.0,0.00032194,2]
[325431798,1714881047132,-500.0,0.00032194,2]
[325431799,1714881047142,-500.0,0.00032194,2]
[325431800,1714881047153,-500.0,0.00032194,2]
[325431801,1714881047163,-500.0,0.00032194,2]
[325431802,1714881047174,-500.0,0.00032194,2]
[325431803,1714881047185,-500.0,0.00032194,2]
[325431804,1714881047195,-500.0,0.00032194,2]
[325431805,1714881047204,-500.0,0.00032194,2]
[325431806,1714881047214,-500.0,0.00032194,2]
[325431807,1714881047224,-500.0,0.00032194,2]
[325431808,1714881047235,-500.0,0.00032194,2]
[325431809,1714881047245,-500.0,0.00032194,2]
[325431810,1714881047255,-500.0,0.00032194,2]
[325431811,1714881047267,-500.0,0.00032194,2]
[325431812,1714881047276,-500.0,0.00032194,2]
[325431813,1714881047286,-500.0,0.00032194,2]
[325431814,1714881047297,-500.0,0.00032194,2]
[325431815,1714881047307,-500.0,0.00032194,2]
[325431816,1714881047317,-500.0,0.00032194,2]
[325431817,1714881047327,-500.0,0.00032194,2]
[325431818,1714881047336,-500.0,0.00032194,2]
[325431819,1714881047346,-500.0,0.00032194,2]
[325431820,1714881047355,-500.0,0.00032194,2]
[325431821,1714881047365,-500.0,0.00032194,2]
[325431822,1714881047376,-500.0,0.00032194,2]
[325431823,1714881047386,-500.0,0.00032194,2]
[325431824,1714881047396,-500.0,0.00032194,2]
[325431825,1714881047405,-500.0,0.00032194,2]
[325431826,1714881047416,-500.0,0.00032194,2]
[325431827,1714881047425,-500.0,0.00032194,2]
[325431828,1714881047435,-500.0,0.00032194,2]
[325431829,1714881047444,-500.0,0.00032194,2]
[325431830,1714881047454,-500.0,0.00032194,2]
[325431831,1714881047464,-500.0,0.00032194,2]
[325431832,1714881047474,-500.0,0.00032194,2]
[325431833,1714881047483,-500.0,0.00032194,2]
[325431834,1714881047493,-500.0,0.00032194,2]
[325431835,1714881047502,-500.0,0.00032194,2]
[325431836,1714881047511,-500.0,0.00032194,2]
[325431837,1714881047521,-500.0,0.00032194,2]
[325431838,1714881047530,-500.0,0.00032194,2]
[325431839,1714881047540,-500.0,0.00032194,2]
[325431840,1714881047550,-500.0,0.00032194,2]
[325431841,1714881047560,-500.0,0.00032194,2]
[325431842,1714881047570,-500.0,0.00032194,2]
[325431843,1714881047579,-500.0,0.00032194,2]
[325431844,1714881047589,-500.0,0.00032194,2]
[325431845,1714881047598,-500.0,0.00032194,2]
[325431846,1714881047608,-500.0,0.00032194,2]
[325431847,1714881047619,-500.0,0.00032194,2]
[325431848,1714881047629,-500.0,0.00032194,2]
[325431849,1714881047638,-500.0,0.00032194,2]
[325431850,1714881047648,-500.0,0.00032194,2]
[325431851,1714881047657,-500.0,0.00032194,2]
[325431852,1714881047667,-500.0,0.00032194,2]
[325431853,1714881047678,-500.0,0.00032194,2]
[325431854,1714881047693,-500.0,0.00032194,2]
[325431855,1714881047706,-500.0,0.00032194,2]
[325431856,1714881047716,-500.0,0.00032194,2]
[325431857,1714881047727,-500.0,0.00032194,2]
[325431858,1714881047737,-500.0,0.00032194,2]
[325431859,1714881047747,-500.0,0.00032194,2]
[325431860,1714881047756,-500.0,0.00032194,2]
[325431861,1714881047766,-500.0,0.00032194,2]
[325431862,1714881047775,-500.0,0.00032194,2]
[325431863,1714881047786,-500.0,0.00032194,2]
[325431864,1714881047795,-500.0,0.00032194,2]
[325431865,1714881047804,-500.0,0.00032194,2]
[325431866,1714881047814,-500.0,0.00032194,2]
[325431867,1714881047823,-500.0,0.00032194,2]
[325431868,1714881047833,-500.0,0.00032194,2]
[325431869,1714881047843,-500.0,0.00032194,2]
[325431870,1714881047853,-500.0,0.00032194,2]
[325431871,1714881047863,-500.0,0.00032194,2]
[325431872,1714881047874,-500.0,0.00032194,2]
[325431873,1714881047883,-500.0,0.00032194,2]
[325431874,1714881047893,-500.0,0.00032194,2]
[325431875,1714881047903,-500.0,0.00032194,2]
[325431876,1714881047912,-500.0,0.00032194,2]
[325431877,1714881047922,-500.0,0.00032194,2]
[325431878,1714881047933,-500.0,0.00032194,2]
[325431879,1714881047943,-500.0,0.00032194,2]
[325431880,1714881047952,-500.0,0.00032194,2]
[325431881,1714881047962,-500.0,0.00032194,2]
[325431882,1714881047972,-500.0,0.00032194,2]
[325431883,1714881047982,-500.0,0.00032194,2]
[325431884,1714881047992,-500.0,0.00032194,2]
[325431885,1714881048002,-500.0,0.00032194,2]
[325431886,1714881048012,-500.0,0.00032194,2]
[325431887,1714881048022,-500.0,0.00032194,2]
[325431888,1714881048031,-500.0,0.00032194,2]
[325431889,1714881048042,-500.0,0.00032194,2]
[325431890,1714881048052,-500.0,0.00032194,2]
[325431891,1714881048061,-500.0,0.00032194,2]
[325431892,1714881048071,-500.0,0.00032194,2]
[325431893,1714881048082,-500.0,0.00032194,2]
[325431894,1714881048091,-500.0,0.00032194,2]
[325431895,1714881048101,-500.0,0.00032194,2]
[325431896,1714881048111,-500.0,0.00032194,2]
[325431897,1714881048120,-500.0,0.00032194,2]
[325431898,1714881048131,-500.0,0.00032194,2]
[325431899,1714881048140,-500.0,0.00032194,2]
[325431900,1714881048150,-500.0,0.00032194,2]
[325431901,1714881048160,-500.0,0.00032194,2]
[325431902,1714881048170,-500.0,0.00032194,2]
[325431903,1714881048180,-500.0,0.00032194,2]
[325431904,1714881048190,-500.0,0.00032194,2]
[325431905,1714881048199,-500.0,0.00032194,2]
[325431906,1714881048209,-500.0,0.00032194,2]
[325431907,1714881048218,-500.0,0.00032194,2]
[325431908,1714881048228,-500.0,0.00032194,2]
[325431909,1714881048237,-500.0,0.00032194,2]
[325431910,1714881048247,-500.0,0.00032194,2]
[325431911,1714881048257,-500.0,0.00032194,2]
[325431912,1714881048267,-500.0,0.00032194,2]
[325431913,1714881048278,-500.0,0.00032194,2]
[325431914,1714881048288,-500.0,0.00032194,2]
[325431915,1714881048298,-500.0,0.00032194,2]
[325431916,1714881048307,-500.0,0.00032194,2]
[325431917,1714881048318,-500.0,0.00032194,2]
[325431918,1714881048328,-500.0,0.00032194,2]
[325431919,1714881048338,-500.0,0.00032194,2]
[325431920,1714881048348,-500.0,0.00032194,2]
[325431921,1714881048359,-500.0,0.00032194,2]
[325431922,1714881048369,-500.0,0.00032194,2]
[325431923,1714881048380,-500.0,0.00032194,2]
[325431924,1714881048390,-500.0,0.00032194,2]
[325431925,1714881048400,-500.0,0.00032194,2]
[325431926,1714881048409,-500.0,0.00032194,2]
[325431927,1714881048419,-500.0,0.00032194,2]
[325431928,1714881048432,-500.0,0.00032194,2]
[325431929,1714881048441,-500.0,0.00032194,2]
[325431930,1714881048451,-500.0,0.00032194,2]
[325431931,1714881048460,-500.0,0.00032194,2]
[325431932,1714881048469,-500.0,0.00032194,2]
[325431933,1714881048478,-500.0,0.00032194,2]
[325431934,1714881048488,-500.0,0.00032194,2]
[325431935,1714881048498,-500.0,0.00032194,2]
[325431936,1714881048507,-500.0,0.00032194,2]
[325431937,1714881048518,-500.0,0.00032194,2]
[325431938,1714881048528,-500.0,0.00032194,2]
[325431939,1714881048537,-500.0,0.00032194,2]
[325431940,1714881048547,-500.0,0.00032194,2]
[325431941,1714881048557,-500.0,0.00032194,2]
[325431942,1714881048567,-500.0,0.00032194,2]
[325431943,1714881048577,-500.0,0.00032194,2]
[325431944,1714881048586,-500.0,0.00032194,2]
[325431945,1714881048596,-500.0,0.00032194,2]
[325431946,1714881048607,-500.0,0.00032194,2]
[325431947,1714881048617,-500.0,0.00032194,2]
[325431948,1714881048627,-500.0,0.00032194,2]
[325431949,1714881048636,-500.0,0.00032194,2]
[325431950,1714881048646,-500.0,0.00032194,2]
[325431951,1714881048657,-500.0,0.00032194,2]
[325431952,1714881048667,-500.0,0.00032194,2]
[325431953,1714881048682,-500.0,0.00032194,2]
[325431954,1714881048697,-500.0,0.00032194,2]
[325431955,1714881048706,-500.0,0.00032194,2]
[325431956,1714881048715,-500.0,0.00032194,2]
[325431957,1714881048725,-500.0,0.00032194,2]
[325431958,1714881048735,-500.0,0.00032194,2]
[325431959,1714881048744,-500.0,0.00032194,2]
[325431960,1714881048753,-161.26121539,0.00032211,2]
[325431961,1714881048763,-157.234079,0.00032332,7]
[325431962,1714881048772,-159.00861802,0.00032525,7]
[325431963,1714881048782,-161.66396807,0.00032824,7]
[325431964,1714881048792,-429.32309817,0.00032876,2]
[325431965,1714881048802,-519.67075366,0.00033,120]
[325431966,1714881048811,-150.0,0.00033,2]
[325431967,1714881048821,-161.26121539,0.00033082,2]
[325431968,1714881048831,-150.0,0.000331,7]
[325431969,1714881048840,-200.0,0.00033117,2]
[325431970,1714881048851,-419.31,0.00033151,2]
[325431971,1714881048861,-522.27,0.00033151,2]
[325431972,1714881048871,-396.719388,0.000336,7]
[325431973,1714881048880,-150.0,0.000336,7]
[325431974,1714881048890,-1295.02080291,0.00033833,4]
[325431975,1714881048899,-1504.24968072,0.00033833,2]
[325431976,1714881048908,-161.26121539,0.00033952,2]
[325431977,1714881048918,-162.33,0.00034041,15]
[325431978,1714881048929,-150.0,0.000341,8]
[325431979,1714881048939,-7540.0,0.00034463,7]
[325431980,1714881048948,-150.0,0.00034548,10]
[325431981,1714881048958,-150.0,0.000346,8]
[325431982,1714881048968,-153.87,0.00034603,2]
[325431983,1714881048978,-150.0,0.00034603,2]
[325431984,1714881048988,-150.0,0.00034603,2]
[325431985,1714881048998,-150.0,0.00034603,2]
[325431986,1714881049007,-161.26121539,0.00034823,2]
[325431987,1714881049017,-157.234079,0.00034837,7]
[325431988,1714881049027,-790.0,0.00035,30]
[325431989,1714881049037,-150.0,0.000351,8]
[325431990,1714881049046,-3930.96767748,0.00035258,4]
[325431991,1714881049056,-400.0,0.000353,12]
[325431992,1714881049066,-1000.0,0.0003533,15]
[325431993,1714881049075,-1000.0,0.00035331,15]
[325431994,1714881049085,-1000.0,0.00035331,15]
[325431995,1714881049095,-500.0,0.00035331,10]
[325431996,1714881049104,-200.0,0.00035331,10]
[325431997,1714881049114,-900.0,0.000354,12]
[325431998,1714881049123,-200.35674937,0.00035438,2]
[325431999,1714881049133,-1300.0,0.000355,12]
[325432000,1714881049147,-152.45879223,0.00035516,2]
[325432001,1714881049157,-168.64352445,0.00035516,8]
[325432002,1714881049167,-166.87116172,0.00035516,8]
[325432003,1714881049179,-160.0,0.000356,9]
[325432004,1714881049188,-1897.99848273,0.000356,2]
[325432005,1714881049199,-5350.0,0.000356,21]
[325432006,1714881049208,-200.0,0.000356,9]
[325432007,1714881049218,-2396.0,0.000356,22]
[325432008,1714881049227,-5350.0,0.000356,29]
[325432009,1714881049237,-5350.0,0.000356,30]
[325432010,1714881049247,-1800.0,0.000356,12]
[325432011,1714881049257,-150.0,0.000356,8]
[325432012,1714881049267,-12084.9587464,0.00035603,2]
[325432013,1714881049276,-30324.237247,0.00035603,2]
[325432014,1714881049286,-57116.2280551,0.00035603,2]
[325432015,1714881049296,-1723.2495447,0.00035603,2]
[325432016,1714881049402,-314.54499048,0.00035614,4]
[325432017,1714881049412,-155.28501705,0.00035614,4]
[325432018,1714881049422,-155.11310773,0.00035614,4]
[325432019,1714881049433,-205.23692207,0.00035614,4]
[325432020,1714881049443,-155.69297426,0.00035614,4]
[325432021,1714881049453,-3083.71402202,0.00035614,15]
[325432022,1714881049462,-155.30951025,0.00035614,4]
[325432023,1714881049472,-467.97960177,0.00035614,4]
[325432024,1714881049482,-644.74632432,0.00035614,4]
[325432025,1714881049492,-3018.25380717,0.00035614,4]
[325432026,1714881049501,-411.85294914,0.00035614,4]
[325432027,1714881049510,-194.15317823,0.00035614,4]
[325432028,1714881049520,-226.52197322,0.00035614,4]
[325432029,1714881049529,-194.97288827,0.00035614,4]
[325432030,1714881049538,-155.42177017,0.00035614,4]
[325432031,1714881049547,-2228.00253857,0.00035614,2]
[325432032,1714881049556,-288.94378566,0.00035614,4]
[325432033,1714881049565,-287.11697069,0.00035614,4]
[325432034,1714881049574,-2820.73071379,0.00035614,4]
[325432035,1714881049583,-286.16405215,0.00035614,4]
[325432036,1714881049592,-195.47609096,0.00035615,4]
[325432037,1714881049601,-306.92143567,0.00035615,4]
[325432038,1714881049611,-1443.62585501,0.00035615,4]
[325432039,1714881049634,-924.37461237,0.00035615,4]
[325432040,1714881049644,-155.33955908,0.00035615,4]
[325432041,1714881049655,-207.58542229,0.00035615,2]
[325432042,1714881049663,-5648.27973679,0.00035615,2]
[325432043,1714881049673,-511.0,0.00035616,5]
[325432044,1714881049684,-969.13484807,0.00035616,4]
[325432045,1714881049698,-1345.24555666,0.00035616,4]
[325432046,1714881049707,-155.0,0.00035616,4]
[325432047,1714881049717,-956.05,0.00035616,8]
[325432048,1714881049726,-504.70944196,0.00035616,8]
[325432049,1714881049737,-526.94847804,0.00035616,8]
[325432050,1714881049746,-335.74495935,0.00035616,8]
[325432051,1714881049755,-500.0,0.00035616,8]
[325432052,1714881049765,-200.0,0.00035616,8]
[325432053,1714881049776,-693.53,0.00035616,8]
[325432054,1714881049789,-500.0,0.00035616,8]
[325432055,1714881049799,-466.09158947,0.00035616,8]
[325432056,1714881049809,-500.0,0.00035616,8]
[325432057,1714881049819,-625.75,0.00035616,8]
[325432058,1714881049828,-989.67,0.00035616,8]
[325432059,1714881049838,-1141.93,0.00035616,8]
[325432060,1714881049848,-500.0,0.00035616,8]
[325432061,1714881049857,-500.0,0.00035616,8]
[325432062,1714881049867,-851.43,0.00035616,8]
[325432063,1714881049876,-1623.45,0.00035616,8]
[325432064,1714881049885,-1397.77,0.00035616,8]
[325432065,1714881049897,-1396.97,0.00035616,8]
[325432066,1714881049907,-500.0,0.00035616,8]
[325432067,1714881049916,-1607.98,0.00035616,8]
[325432068,1714881049925,-504.20299081,0.00035616,8]
[325432069,1714881049938,-588.74,0.00035616,8]
[325432070,1714881049947,-292.40433107,0.00035616,8]
[325432071,1714881051049,-224.38238837,0.00032094,2]
[325432072,1714881051059,-207.59566893,0.00035616,8]
[325432073,1714881051069,-500.0,0.00035616,8]
[325432074,1714881051078,-500.0,0.00035616,8]
[325432075,1714881051087,-78.0219427,0.00035616,8]
[325432076,1714881051110,-276.65015819,0.00035616,8]
[325432077,1714881051121,-213.20789911,0.00035616,8]
[325432078,1714881051130,-500.0,0.00035616,8]
[325432079,1714881051139,-500.0,0.00035616,8]
[325432080,1714881051149,-51.13210089,0.00035616,8]
[325432081,1714881051161,-371.20298796,0.00035616,8]
[325432082,1714881051172,-77.66491115,0.00035616,8]
[325432083,1714881051183,-1598.0,0.00035616,8]
[325432084,1714881051192,-162.58214973,0.00035616,8]
[325432085,1714881051202,-500.0,0.00035616,8]
[325432086,1714881051212,-500.0,0.00035616,8]
[325432087,1714881051221,-500.0,0.00035616,8]
[325432088,1714881051230,-500.0,0.00035616,8]
[325432089,1714881051239,-500.0,0.00035616,8]
[325432090,1714881051248,-500.0,0.00035616,8]
[325432091,1714881051258,-500.0,0.00035616,8]
[325432092,1714881051268,-500.0,0.00035616,8]
[325432093,1714881051278,-500.0,0.00035616,8]
[325432094,1714881051287,-500.0,0.00035616,8]
[325432095,1714881051296,-500.0,0.00035616,8]
[325432096,1714881051305,-14.33143188,0.00035616,8]
[325432097,1714881051318,-485.66856812,0.00035616,8]
[325432098,1714881051327,-500.0,0.00035616,8]
[325432099,1714881051337,-1691.68,0.00035616,8]
[325432100,1714881051346,-508.45001753,0.00035616,7]
[325432101,1714881051355,-729.8,0.00035616,8]
[325432102,1714881051365,-500.0,0.00035616,8]
[325432103,1714881051375,-1009.73,0.00035616,8]
[325432104,1714881051385,-500.0,0.00035616,8]
[325432105,1714881051394,-500.0,0.00035616,8]
[325432106,1714881051404,-500.0,0.00035616,8]
[325432107,1714881051413,-500.0,0.00035616,8]
[325432108,1714881051423,-500.0,0.00035616,8]
[325432109,1714881051434,-527.9,0.00035616,8]
[325432110,1714881051442,-1726.42,0.00035616,8]
[325432111,1714881051451,-917.89,0.00035616,8]
[325432112,1714881051460,-801.54,0.00035616,8]
[325432113,1714881051470,-500.0,0.00035616,8]
[325432114,1714881051479,-500.0,0.00035616,8]
[325432115,1714881051489,-500.0,0.00035616,8]
[325432116,1714881051498,-944.31,0.00035616,8]
[325432117,1714881051508,-500.0,0.00035616,8]
[325432118,1714881051519,-1065.08,0.00035616,8]
[325432119,1714881051530,-1038.06,0.00035616,8]
[325432120,1714881051540,-1667.64,0.00035616,8]
[325432121,1714881051549,-1038.27,0.00035616,8]
[325432122,1714881051559,-500.0,0.00035616,8]
[325432123,1714881051568,-1217.48,0.00035616,8]
[325432124,1714881051578,-810.16,0.00035616,8]
[325432125,1714881051588,-300.0,0.00035616,7]
[325432126,1714881051599,-500.0,0.00035616,8]
[325432127,1714881051609,-500.0,0.00035616,8]
[325432128,1714881051618,-529.34,0.00035616,8]
[325432129,1714881051627,-500.0,0.00035616,8]
[325432130,1714881051640,-1203.62,0.00035616,8]
[325432131,1714881051649,-500.0,0.00035616,8]
[325432132,1714881051661,-396.52908201,0.00035616,8]
[325432133,1714881051672,-500.0,0.00035616,8]
[325432134,1714881051685,-738.11,0.00035616,8]
[325432135,1714881051698,-500.0,0.00035616,8]
[325432136,1714881051710,-1261.57,0.00035616,8]
[325432137,1714881051722,-1095.99,0.00035616,8]
[325432138,1714881051733,-719.11,0.00035616,8]
[325432139,1714881051744,-777.6,0.00035616,8]
[325432140,1714881051756,-500.0,0.00035616,8]
[325432141,1714881051767,-1138.05,0.00035616,8]
[325432142,1714881051778,-500.0,0.00035616,8]
[325432143,1714881051790,-249.16645716,0.00035616,8]
[325432144,1714881051800,-671.89,0.00035616,8]
[325432145,1714881051810,-1009.66,0.00035616,8]
[325432146,1714881051819,-500.0,0.00035616,2]
[325432147,1714881051828,-500.0,0.00035616,8]
[325432148,1714881051837,-500.0,0.00035616,8]
[325432149,1714881051846,-845.27,0.00035616,8]
[325432150,1714881051855,-616.67,0.00035616,8]
[325432151,1714881051864,-1135.14,0.00035616,8]
[325432152,1714881051874,-500.0,0.00035616,8]
[325432153,1714881051883,-523.9,0.00035616,8]
[325432154,1714881051892,-500.0,0.00035616,8]
[325432155,1714881051901,-500.0,0.00035616,8]
[325432156,1714881051911,-991.83,0.00035616,8]
[325432157,1714881051919,-1433.37,0.00035616,2]
[325432158,1714881051931,-830.85,0.00035616,8]
[325432159,1714881051940,-675.1,0.00035616,8]
[325432160,1714881051950,-682.22,0.00035616,8]
[325432161,1714881051960,-416.00385179,0.00035616,8]
[325432162,1714881051971,-500.0,0.00035616,8]
[325432163,1714881051981,-500.0,0.00035616,8]
[325432164,1714881051991,-877.89,0.00035616,8]
[325432165,1714881052000,-500.0,0.00035616,8]
[325432166,1714881052011,-717.3,0.00035616,8]
[325432167,1714881052021,-1248.98,0.00035616,8]
[325432168,1714881052032,-500.0,0.00035616,8]
[325432169,1714881052041,-1296.26,0.00035616,8]
[325432170,1714881052051,-500.0,0.00035616,8]
[325432171,1714881052061,-526.39,0.00035616,8]
[325432172,1714881052070,-1458.7,0.00035616,8]
[325432173,1714881052080,-500.0,0.00035616,8]
[325432174,1714881052090,-889.07,0.00035616,8]
[325432175,1714881052099,-1042.31,0.00035616,8]
[325432176,1714881052109,-500.0,0.00035616,8]
[325432177,1714881052118,-500.0,0.00035616,8]
[325432178,1714881052127,-500.0,0.00035616,8]
[325432179,1714881052137,-1367.67,0.00035616,8]
[325432180,1714881052146,-500.0,0.00035616,8]
[325432181,1714881052156,-500.0,0.00035616,8]
[325432182,1714881052166,-500.0,0.00035616,8]
[325432183,1714881052175,-500.0,0.00035616,8]
[325432184,1714881052187,-815.7,0.00035616,8]
[325432185,1714881052197,-1670.29,0.00035616,8]
[325432186,1714881052207,-1666.35,0.00035616,8]
[325432187,1714881052216,-500.0,0.00035616,8]
[325432188,1714881052226,-500.0,0.00035616,8]
[325432189,1714881052236,-500.0,0.00035616,8]
[325432190,1714881052245,-1291.85,0.00035616,8]
[325432191,1714881052255,-500.0,0.00035616,8]
[325432192,1714881052264,-908.18,0.00035616,8]
[325432193,1714881052274,-500.0,0.00035616,8]
[325432194,1714881052284,-500.0,0.00035616,8]
[325432195,1714881052293,-500.0,0.00035616,8]
[325432196,1714881052302,-590.07,0.00035616,8]
[325432197,1714881052311,-500.0,0.00035616,8]
[325432198,1714881052321,-500.0,0.00035616,8]
[325432199,1714881052331,-500.0,0.00035616,8]
[325432200,1714881052340,-500.0,0.00035616,8]
[325432201,1714881052350,-500.0,0.00035616,8]
[325432202,1714881052359,-500.0,0.00035616,8]
[325432203,1714881052369,-1913.34,0.00035616,2]
[325432204,1714881052378,-1665.66,0.00035616,8]
[325432205,1714881052387,-1651.27,0.00035616,8]
[325432206,1714881052397,-714.43,0.00035616,8]
[325432207,1714881052406,-500.0,0.00035616,8]
[325432208,1714881052416,-437.42609742,0.00035616,8]
[325432209,1714881052426,-617.2,0.00035616,8]
[325432210,1714881052437,-500.0,0.00035616,8]
[325432211,1714881052447,-156.48361291,0.00035616,8]
[325432212,1714881052455,-500.0,0.00035616,8]
[325432213,1714881052464,-500.0,0.00035616,8]
[325432214,1714881052474,-500.0,0.00035616,8]
[325432215,1714881052483,-930.48,0.00035616,8]
[325432216,1714881052493,-663.96,0.00035616,8]
[325432217,1714881052502,-1327.6,0.00035616,8]
[325432218,1714881052512,-1380.29,0.00035616,8]
[325432219,1714881052524,-999.09,0.00035616,8]
[325432220,1714881052535,-500.0,0.00035616,8]
[325432221,1714881052547,-505.32869157,0.00035616,8]
[325432222,1714881052559,-500.0,0.00035616,8]
[325432223,1714881052569,-500.0,0.00035616,8]
[325432224,1714881052580,-500.0,0.00035616,8]
[325432225,1714881052591,-1089.44,0.00035616,8]
[325432226,1714881052601,-826.03,0.00035616,8]
[325432227,1714881052611,-660.27,0.00035616,8]
[325432228,1714881052621,-1037.34,0.00035616,8]
[325432229,1714881052631,-712.61,0.00035616,8]
[325432230,1714881052640,-500.0,0.00035616,8]
[325432231,1714881052650,-500.0,0.00035616,8]
[325432232,1714881052660,-500.0,0.00035616,8]
[325432233,1714881052670,-500.0,0.00035616,8]
[325432234,1714881052683,-500.0,0.00035616,8]
[325432235,1714881052694,-750.8,0.00035616,8]
[325432236,1714881052704,-500.0,0.00035616,8]
[325432237,1714881052712,-500.0,0.00035616,8]
[325432238,1714881052722,-1359.01,0.00035616,8]
[325432239,1714881052733,-953.36,0.00035616,8]
[325432240,1714881052743,-174.21089893,0.00035616,8]
[325432241,1714881052753,-632.06314955,0.00035616,8]
[325432242,1714881052763,-500.0,0.00035616,8]
[325432243,1714881052773,-500.0,0.00035616,8]
[325432244,1714881052784,-1699.87,0.00035616,8]
[325432245,1714881052801,-1320.48,0.00035616,8]
[325432246,1714881052810,-778.56,0.00035616,8]
[325432247,1714881052820,-667.1,0.00035616,8]
[325432248,1714881052830,-500.0,0.00035616,8]
[325432249,1714881052839,-911.06,0.00035616,8]
[325432250,1714881052848,-1323.04,0.00035616,8]
[325432251,1714881052858,-911.69,0.00035616,8]
[325432252,1714881052868,-891.72,0.00035616,8]
[325432253,1714881052878,-583.43,0.00035616,8]
[325432254,1714881052888,-500.0,0.00035616,8]
[325432255,1714881052898,-500.0,0.00035616,8]
[325432256,1714881052907,-1630.42,0.00035616,8]
[325432257,1714881052917,-884.25,0.00035616,8]
[325432258,1714881052926,-500.0,0.00035616,8]
[325432259,1714881052937,-672.96,0.00035616,8]
[325432260,1714881052946,-500.0,0.00035616,8]
[325432261,1714881052956,-653.63,0.00035616,8]
[325432262,1714881052965,-500.0,0.00035616,8]
[325432263,1714881052974,-1640.4,0.00035616,8]
[325432264,1714881052983,-500.0,0.00035616,8]
[325432265,1714881052993,-1166.34,0.00035616,8]
[325432266,1714881053004,-500.0,0.00035616,8]
[325432267,1714881053013,-500.0,0.00035616,8]
[325432268,1714881053023,-1038.24,0.00035616,8]
[325432269,1714881053033,-678.8,0.00035616,8]
[325432270,1714881053043,-844.83,0.00035616,8]
[325432271,1714881053052,-912.52,0.00035616,8]
[325432272,1714881053061,-737.45,0.00035616,8]
[325432273,1714881053071,-500.0,0.00035616,8]
[325432274,1714881053080,-500.0,0.00035616,8]
[325432275,1714881053090,-3.89786195,0.00035616,8]
[325432276,1714881552392,453.22,0.00025008,120]
[325432283,1714882232408,-514.07364148,0.00012799,2]
[325432284,1714882232418,-161.10137834,0.000128,2]
[325432285,1714882232428,-268.80453534,0.0001289,5]
[325432286,1714882232439,-444.06,0.0001289,5]
[325432287,1714882232458,-426.64000004,0.0001289,5]
[325432288,1714882232470,-134.90983452,0.0001289,5]
[325432289,1714882232479,-150.0,0.00012899,2]
[325432290,1714882232489,-2500.0,0.000129,2]
[325432291,1714882232499,-299.71098842,0.00013,2]